Cogmind - Beta 13 @@@ ROGUE MODE // 2024.04.07 @ 23:30:25 Player: Olafz Result: Destroyed by G-34 Mercenary with Small Laser Performance ------------- Evolutions (1) 500 Regions Visited (3) 600 Robots Destroyed (16) 80 Value Destroyed (378) 378 Prototype IDs (3) 60 Alien Tech Used (0) 0 Bonus (-8) -8 TOTAL SCORE: 1610 Bonus ------- Follower Combat Kills 109 Friendly Fire -117 Cogmind --------- Core Integrity 0/400 Matter 184/300 Energy 73/100 System Corruption 4% Temperature Cool (6) Movement Treading (240) Ox1 Location -9/Materials Parts ------- > --- POWER (1) -------- (None) > --- PROPULSION (2) --- Light Treads > --- UTILITY (4) ------ Large Storage Unit Signal Interpreter Utility Shielding > --- WEAPON (2) ------- (None) > --- INVENTORY (15) --- Ion Engine Ion Engine Light Ion Engine Small Storage Unit Signal Interpreter Utility Shielding Faulty Improved Assault Rifle Datajack Datajack Peak State ------------ > --- POWER ------------ Light Nuclear Core > --- PROPULSION ------- Light Treads Light Treads > --- UTILITY ---------- Large Storage Unit Sensor Array Signal Interpreter Utility Shielding > --- WEAPON ----------- Assault Rifle Light Assault Rifle > --- INVENTORY -------- Ion Engine Ion Engine Light Ion Engine Small Storage Unit Signal Interpreter Utility Shielding Improved Assault Rifle Grenade Launcher Datajack Datajack [Rating: 12] Favorites ----------- Power Ion Engine Engine Ion Engine Power Core Light Nuclear Core Propulsion Light Treads Treads Light Treads Utility Large Storage Unit Device Sensor Array Storage Large Storage Unit Processor Signal Interpreter Protection Utility Shielding Weapon Assault Rifle Ballistic Gun Assault Rifle Launcher Grenade Launcher Build | -11 -10 -10 -9 ------- Run | Yrd Mat Min Mat Slots Evolved 2 | . . . 2 Power . | . . . . Propulsion . | . . . . Utility 2 | . . . 2 Weapon . | . . . . Parts Attached 15 | 6 2 1 6 Power 3 | 1 . 1 1 Engine 2 | 1 . 1 . Core 1 | . . . 1 Reactor . | . . . . Propulsion 3 | 2 . . 1 Treads 3 | 2 . . 1 Leg . | . . . . Wheel . | . . . . Hover . | . . . . Flight . | . . . . Utility 5 | 1 2 . 2 Device 1 | . . . 1 Storage 2 | 1 1 . . Processor 1 | . 1 . . Hackware . | . . . . Protection 1 | . . . 1 Artifact . | . . . . Weapon 4 | 2 . . 2 Energy Gun . | . . . . Energy Cannon . | . . . . Ballistic Gun 3 | 2 . . 1 Ballistic Cannon . | . . . . Launcher 1 | . . . 1 Special Weapon . | . . . . Impact Weapon . | . . . . Slashing Weapon . | . . . . Piercing Weapon . | . . . . Special Melee Weapon . | . . . . Unidentified Prototypes 1 | . . . 1 Parts Lost 7 | . . . 7 Power 1 | . . . 1 Propulsion 2 | . . . 2 Utility 1 | . . . 1 Weapon 3 | . . . 3 Highest Loss Streak 7 | . . . 7 To Critical Strikes . | . . . . Average Slot Usage (%) 97 | . 95 100 94 Engine 10 | . 14 14 2 Core 2 | . . . 7 Treads 25 | . 28 28 19 Device 3 | . . . 10 Storage 13 | . 14 14 11 Processor 12 | . 9 14 11 Protection 3 | . . . 11 Ballistic Gun 25 | . 28 28 20 Naked Turns . | . . . . Heaviest Build 30 | 11 26 28 30 Greatest Support 40 | 40 40 40 40 Greatest Overweight (x) 7 | 1 . . 7 Average Overweight (x) . | . . . . Largest Inventory Capacity 15 | 8 15 15 15 Average Capacity 14 | 7 14 15 15 Most Carried 10 | 1 8 10 10 Average Carried 8 | . 5 9 9 Final Capacity 15 | 8 15 15 15 Final Carried 10 | 1 8 10 9 Class Distribution -------------------- 100% | Mutant Dominant Class ---------------- Mutant | -10/Materials Mutant | -10/Mines Mutant | -9/Materials Resources | -11 -10 -10 -9 ----------- Run | Yrd Mat Min Mat Matter Collected 495 | 116 14 94 271 Remotely . | . . . . Salvage Created 498 | . 59 78 361 Parts 34 | . 7 7 20 Haulers Intercepted . | . . . . Recyclers Shooed 1 | . . . 1 Parts Field Recycled . | . . . . Retrieved Matter . | . . . . Parts Self-Destructed . | . . . . Prevented . | . . . . Kills | -11 -10 -10 -9 ------- Run | Yrd Mat Min Mat Combat Hostiles Destroyed 10 | . 1 3 6 Guns 8 | . 1 3 4 AOE 2 | . . . 2 Classes Destroyed 7 | . 3 1 3 Worker 1 | . . . 1 Recycler 1 | . . . 1 Operator 2 | . 1 . 1 Watcher 1 | . 1 . . Swarmer 2 | . . 2 . Grunt 8 | . 1 1 6 Sentry 1 | . . . 1 Best Kill Streak 5 | . 2 2 5 Combat Bots Only 3 | . 1 2 3 Max Kills in Single Turn 2 | . 1 1 2 Gunslinging . | . . . . Exploded 1 | . . . 1 Melee . | . . . . Uniques/NPCs Destroyed . | . . . . Combat | -11 -10 -10 -9 -------- Run | Yrd Mat Min Mat Hostile Shots Fired 106 | . 4 14 88 Missed 23 | . . 4 19 Damage Taken 1119 | . 42 134 943 Core 417 | . . 10 407 Absorbed by Shields . | . . . . Redirected to Shielding 18 | . . . 18 Core Remaining (%) 98 | 100 . 96 . Volleys Fired 73 | . 17 10 46 Largest 2 | . 2 2 2 Hottest 40 | . 40 40 40 Shots Fired 139 | . 34 20 85 Gun 136 | . 34 20 82 Cannon . | . . . . Launcher 3 | . . . 3 Special . | . . . . Kinetic 136 | . 34 20 82 Thermal . | . . . . Explosive 3 | . . . 3 Electromagnetic . | . . . . Robot Hit Streak 9 | . 3 4 9 Robot Miss Streak 8 | . 3 1 8 Penetration Max . | . . . . Secondary Targets 1 | . . 1 . Max Gunslinging Chain 1 | . . 1 . Shots Hit Robots 90 | . 19 13 58 Core Hits 30 | . 6 5 19 Critical Kills . | . . . . Critical Parts Destroyed 1 | . 1 . . Critical Strikes 1 | . 1 . . Destroy 1 | . 1 . . Melee Attacks . | . . . . Impact . | . . . . Slashing . | . . . . Piercing . | . . . . Sneak Attacks . | . . . . Combat Hostiles . | . . . . Follow-up Attacks . | . . . . Damage Inflicted 1144 | . 184 114 846 Guns 869 | . 184 111 574 Cannons . | . . . . Explosions 271 | . . . 271 Melee . | . . . . Ramming 4 | . . 3 1 Kinetic 869 | . 184 111 574 Thermal . | . . . . Explosive 271 | . . . 271 Electromagnetic . | . . . . Impact . | . . . . Slashing . | . . . . Piercing . | . . . . Highest Corruption 4 | . . . 4 Average Corruption 4 | . . . 4 Corruption Purged . | . . . . Corruption Blocked . | . . . . Overload Shots . | . . . . Overflow Damage . | . . . . Projectiles . | . . . . Explosions . | . . . . Melee . | . . . . Knockbacks . | . . . . Impact . | . . . . Kinetic . | . . . . Secondary . | . . . . Self-Inflicted Damage 68 | . . . 68 Shots 3 | . . . 3 Rammed 3 | . . 1 2 Targets Rammed 3 | . . 1 2 Kicked . | . . . . Crushed . | . . . . Highest Temperature 41 | . 6 18 41 Average Temperature 10 | . 6 9 11 Received Heat Transfer 522 | . 24 51 447 Siege Activations . | . . . . Robots Corrupted . | . . . . Combat Hostiles . | . . . . Parts Fried . | . . . . Impact Corruptions . | . . . . Robots Melted . | . . . . Combat Hostiles . | . . . . Parts Melted . | . . . . Heat Transferred . | . . . . Parts Sabotaged . | . . . . Parts Stolen . | . . . . Parts Stripped . | . . . . Power Chain Reactions . | . . . . Alert | -11 -10 -10 -9 ------- Run | Yrd Mat Min Mat Peak Influence 243 | . 81 243 214 Initial 31 | . . 31 29 Average 76 | . 29 95 97 Maximum Alert Level 1 | . . 1 1 Low Security (%) 92 | 100 100 88 91 Level 1 7 | . . 11 8 Level 2 . | . . . . Level 3 . | . . . . Level 4 . | . . . . Level 5 . | . . . . High Security . | . . . . Max Security . | . . . . Squads Dispatched 3 | . 1 . 2 Investigation 2 | . 1 . 1 Extermination . | . . . . Reinforcement 1 | . . . 1 Assault . | . . . . Garrison . | . . . . Intercept . | . . . . Searches Triggered . | . . . . Construction Impeded . | . . . . Haulers Reinforced . | . . . . Active Scanning Responses . | . . . . Cargo Convoy Interrupts . | . . . . Stealth | -11 -10 -10 -9 --------- Run | Yrd Mat Min Mat Distress Signals 2 | . . . 2 Communications Jammed . | . . . . Distress Signals . | . . . . Times Spotted 41 | . 6 9 26 Peak Tracking Total 7 | . 2 3 7 Tactical Retreats 3 | . . 1 2 Traps | -11 -10 -10 -9 ------- Run | Yrd Mat Min Mat Traps Triggered . | . . . . Indirectly . | . . . . Trap Hack Attempts . | . . . . Triggered . | . . . . Disarmed . | . . . . Reprogrammed . | . . . . Reused . | . . . . Traps Extracted . | . . . . Installed . | . . . . Triggered . | . . . . Machines | -11 -10 -10 -9 ---------- Run | Yrd Mat Min Mat Machines Disabled 2 | . . 1 1 Max in Single Turn 1 | . . . 1 Machines Repaired . | . . . . Machines Dismantled . | . . . . Machines Sabotaged . | . . . . Overloaded Fab Kills . | . . . . Hacking | -11 -10 -10 -9 --------- Run | Yrd Mat Min Mat Machines Accessed 3 | . 2 . 1 Terminals 3 | . 2 . 1 Fabricators . | . . . . Repair Stations . | . . . . Recycling Units . | . . . . Scanalyzers . | . . . . Garrison Access . | . . . . Total Hacks 8 | . 6 . 2 Successful 2 | . 2 . . Failed 6 | . 4 . 2 Catastrophic 2 | . 1 . 1 Database Lockouts . | . . . . Manual . | . . . . Terminals 8 | . 6 . 2 Fabricators . | . . . . Repair Stations . | . . . . Recycling Units . | . . . . Scanalyzers . | . . . . Garrison Access . | . . . . Terminal Hacks 2 | . 2 . . Prototype ID Bank 1 | . 1 . . Locate Traps 1 | . 1 . . Fabricator Hacks . | . . . . Repair Station Hacks . | . . . . Recycling Unit Hacks . | . . . . Scanalyzer . | . . . . Garrison Access Hacks . | . . . . Unauthorized Hacks . | . . . . Terminals . | . . . . Fabricators . | . . . . Repair Stations . | . . . . Recycling Units . | . . . . Scanalyzers . | . . . . Garrison Access . | . . . . Data Cores Recovered . | . . . . Used . | . . . . Hacking Detections 3 | . 2 . 1 Full Trace Events 3 | . 2 . 1 Feedback Events . | . . . . Feedback Blocked . | . . . . Robot Schematics Acquired . | . . . . Robots Built . | . . . . Authchips . | . . . . Time . | . . . . Total Robot Build Rating . | . . . . Part Schematics Acquired . | . . . . Parts Built . | . . . . Authchips . | . . . . Time . | . . . . Total Part Build Rating . | . . . . Parts Repaired . | . . . . Time . | . . . . Parts Recycled . | . . . . Recycled Matter . | . . . . Retrieved Matter . | . . . . Retrieved Components . | . . . . Parts Scanalyzed . | . . . . Part Schematics Acquired . | . . . . Parts Damaged . | . . . . Bothacking | -11 -10 -10 -9 ------------ Run | Yrd Mat Min Mat Used RIF Installer . | . . . . Robots Hacked . | . . . . Non-combat . | . . . . Combat . | . . . . Robot Hacks Applied . | . . . . Relay Couplers Released . | . . . . Fabnet Peak Effective % . | . . . . Robots Rewired . | . . . . Allies Hacked . | . . . . Hacks Repelled . | . . . . Allies | -11 -10 -10 -9 -------- Run | Yrd Mat Min Mat Total Allies 3 | . . 3 . Largest Group 3 | . . 3 3 Highest-Rated Group 40 | . . 40 40 Highest-Rated Ally 16 | . . 16 16 Total Orders . | . . . . Ally Attacks 54 | . . 26 28 Total Damage 430 | . . 237 193 Kills 9 | . . 5 4 Allies Corrupted . | . . . . Allies Melted . | . . . . Intel | -11 -10 -10 -9 ------- Run | Yrd Mat Min Mat Robot Analysis Total . | . . . . Derelict Logs Recovered 1 | . . 1 . Drone Launches . | . . . . Drone Recoveries . | . . . . Exploration | -11 -10 -10 -9 ------------- Run | Yrd Mat Min Mat Turns Passed 1523 | 62 355 655 451 Spaces Moved 796 | 35 187 387 187 Core 7 | 3 . . 4 Treads 789 | 32 187 387 183 Legs . | . . . . Wheels . | . . . . Hover . | . . . . Flight . | . . . . Fastest Speed 50 | 50 160 160 160 Average Speed 161 | 152 160 160 166 Slowest Speed 400 | 160 160 160 400 Overloaded Moves . | . . . . Propulsion Burnouts . | . . . . Robots Hopped . | . . . . Cave-ins Triggered . | . . . . Exploration Rate (%) 40 | 3 50 87 23 Regions Visited 3 Branch Regions 1 Pre-discovered Areas . | . . . . Known Exits Taken 2 | . 1 1 . Unknown Exits Taken 1 | 1 . . . Scrap Searched . | . . . . Spaces Dug . | . . . . Terrain Destroyed 13 | . . . 13 Melee . | . . . . Projectile . | . . . . AOE 13 | . . . 13 Terrain Rammed . | . . . . Walls Destroyed . | . . . . Machines Disabled . | . . . . Actions | -11 -10 -10 -9 --------- Run | Yrd Mat Min Mat Total 901 | 41 212 404 244 Wait 5 | . . 5 . Move 793 | 34 186 386 187 Hop . | . . . . Pick Up 9 | 1 6 1 1 Fast Attach 10 | 6 2 . 2 Attach 4 | . . . 4 Detach 3 | . 1 . 2 Swap 1 | . . 1 . Drop . | . . . . Fire 73 | . 17 10 46 Melee . | . . . . Ram 2 | . . . 2 Kick . | . . . . Crush 1 | . . 1 . Escape Stasis . | . . . . Rewire . | . . . . Trap . | . . . . Miscellaneous . | . . . . Route ------- -11/Scrapyard -10/Materials -10/Mines -9/Materials History --------- Turn | Location | Event 37 | -11/Scrapyard | Discovered new exit (range 15) 63 | -11/Scrapyard | Entered Materials 313 | -10/Materials | Build established: Mutant 354 | -10/Materials | Discovered new exit (range 13) 415 | -10/Materials | Identified exit to Mines 418 | -10/Materials | Entered Mines 531 | -10/Mines | Assisted by bots powering up and referring to "LRC-V3" 1065 | -10/Mines | Discovered new exit (range 4) 1070 | -10/Mines | Identified exit to Materials 1073 | -10/Mines | Entered Materials 1073 | -9/Materials | Accompanied by 3 allies 1073 | -9/Materials | Evolved 2 slots: Utility x2 1506 | -9/Materials | Core integrity fell below 50% 1515 | -9/Materials | Core integrity fell below 20% 1524 | -9/Materials | Destroyed by G-34 Mercenary with Small Laser Last Messages --------------- 01509_ U-05 Engineer lays Concrete. 01509_ G-34 Mercenary destroyed. 01509_ O-16 Technician destroyed. 01510_ U-05 Engineer lays Concrete. 01511_ Grenade Launcher destroyed. 01511_ R-06 Scavenger collects Sml. Storage Unit. 01511_ Acquired 41 matter. 01512_ U-05 Engineer forms the Earth. 01512_ U-05 Engineer builds a Wall. 01514_ The unstable cave ceiling collapses. 01514_ R-06 Scavenger collects Imp. Ion Engine. 01514_ R-06 Scavenger collects Aluminum Leg. 01516_ U-05 Engineer lays Concrete. 01516_ U-05 Engineer builds a Wall. 01518_ Sensor Array destroyed. 01519_ Acquired Lgt. Treads. 01520_ U-05 Engineer builds a Wall. 01520_ R-06 Scavenger collects Lgt. Ion Engine. 01521_ Identified Imp. Assault Rifle. 01521_ Faulty integration triggers system corruption (+4). Map ----- +----------------------------------------------------+ | ?????????????????????????????????????????????????? | | ?????????????????????????????????????????????????? | | ?????????????????????????????????????????????????? | | ?????????????????????????????????????????????????? | | ?????????????????????????????????????????????????? | | ########?????????????????????????????????????????? | | #?????????????????????????????????????????? | | #?????????????????????????????????????????? | | #?????????????????????????????????????????? | | #?????????????????????????????????????????? | | ! #???????????????? ???????????????????????? | | #???????????????? ???????????????????????? | | #???????????????? ??????????????????????? | | #???????????????# ??????????????????????? | | #??????????????## ??????##??????????????? | | ###+####??????????????# ???? ???????????????? | | + #########????????# ? ???????????????? | | # # #????????+ ???????????????? | | # # """ #????????# ????????????????? | | + + T" #????????# """ """????????????????? | | # # """ #????????#w """ """????????????????? | | # # #????????# """ """w ??????????????? | | ?# #########????????# ?????????????? | | ?# %#??# #????????## ?????????????? | | ?# #??# =########## ! "" ???????????? | | ?# #??# [gr% @"" ???????????? | | ?# #??# [########### " !!! ???????????? | | ?# #??# #?? # !!! ???????????? | | ?#% #??# # # !!! ???????????? | | ?# ####% # # g% ##########???????????? | | ?# % # # #????????????????????? | | ?# % r ???????????????????? | | ## # # ! ??????????????????? | | # ###+#+## # % """ ?????????????????? | | # # # # """ "????????????????? | | # # "T" #########?# """ T ???????????????? | | # # #?????????# ?? " ???????????????? | | # # #?????????# ??? ???????????????? | | # # #?????????#+####???###???????????????? | | # # #?????????? ?????????????????????????? | | + #########????????? ?????????????????????????? | | # #? [ ?????????? ?????????????????????????? | | ## #? ????????????????????????????????????? | | # # """ ""????????????????????????????????????? | | # # """ ""????????????????????????????????????? | | # + """ ""????????????????????????????????????? | | # # #?????????????????????????????????? | | + # #?????????????????????????????????? | | # #?"""T""" #?????????????????????????????????? | | # #?########??????????????????????????????????? | +----------------------------------------------------+ Best States ------------- Heat Dissipation 28 Energy Generation 14 Energy Capacity 250 Matter Stores 194 Matter Capacity 300 Sight Range 16 Robot Scan Range 14 Terrain Scan Density 10 Utility Shielding 33 Evasion (%) 40 Recoil Reduction 2 Item Schematics ----------------- None Robot Schematics ------------------ None Fabricated ------------ Nothing Alien Tech Used ----------------- None Achievements -------------- None Challenges ------------ None Game ------ Seed DeepLaserDevice Manual? 0 Play Time 00:09:29 Cumulative 31.8 hours Start 2024.04.07 @ 23:21:34 End 2024.04.07 @ 23:30:25 Sessions 1 Manual Loads 0 Difficulty Rogue Special Mode None Game No. 85 Rogue 83 Adventurer 2 Explorer 0 Win Type - Total 0 Types 0/0/0/0/0/0/0/0/0 Lore% 24 Gallery% 32 Achievement% 24 Wizard Run 0 Options --------- Layout 0 ASCII 0 Keyboard 1 Movement Numpad Keybinds 0 Fullscreen 2 Font 18/SmallcapsGlow Map View 76x50 Zoom Use 0% Tactical HUD 1 Map Filters NONE Filters NONE Steam 1 RUN: 14935c5a-9006-497a-95f8-c15fecb769fc